[Event "European Women Blitz-ch 2024"]
[Site "Monaco"]
[Date "2025.01.10"]
[Round "5.3"]
[White "Javakhishvili, Lela"]
[Black "Matnadze Bujiashvili, Ann"]
[Result "0-1"]
[Annotator "TA"]
[ECO "A30"]
[WhiteElo "2426"]
[BlackElo "2315"]
[PlyCount "146"]
[EventDate "2025.01.06"]
[EventType "swiss"]
[EventCountry "MNC"]
[SourceTitle "playchess.com"]
[Source "ChessBase"]
[SourceQuality "1"]
[TimeControl "180+2"]

{[%evp 74,146,62,8,61,0,0,-100,14,-109,-143,-129,66,59,232,243,241,-87,-96,-85,-31,-31,-22,-22,0,-33,0,0,0,-8,0,-16,-5,-45,-5,-5,-5,-5,-5,-5,-5,-9,-12,-12,-12,-36,-31,-53,-52,-101,0,-62,0,-95,-78,-398,-116,-125,-82,-96,-43,-112,-19,-15,-8,-8,-8,-189,-19,-29998,0,-29991,-29992,-29996,-29997]} 1. Nf3 {[%emt 0:00:03]} Nf6 {[%emt 0:00:01]} 2. b3 {[%emt 0:00:01]} g6 {[%emt 0:00:02]} 3. Bb2 {[%emt 0:00:01]} Bg7 {[%emt 0:00:01]} 4. g3 {[%emt 0:00:02]} b6 {[%emt 0:00:01]} 5. Bg2 {[%emt 0:00:01]} Bb7 {[%emt 0:00:01]} 6. O-O {[%emt 0:00:03]} O-O {[%emt 0:00:02]} 7. c4 {[%emt 0:00:02]} c5 {[%emt 0:00:01]} 8. d4 {[%emt 0:00:32]} cxd4 {[%emt 0:00:03]} 9. Qxd4 {[%emt 0:00:21]} Nc6 {[%emt 0:00:03]} 10. Qd1 {[%emt 0:00:06]} d5 {[%emt 0:00:20]} 11. cxd5 {[%emt 0:00:20]} Qxd5 {[%emt 0:00:04]} 12. Nc3 {[%emt 0:00:05]} Qa5 {[%emt 0:00:20]} 13. a3 {[%emt 0:00:13]} Rfd8 {[%emt 0:00:01]} 14. Qc2 {[%emt 0:00:02]} Rac8 {[%emt 0:00:06]} 15. Rad1 {[%emt 0:01:40]} Qf5 {[%emt 0:00:36]} 16. Qxf5 {[%emt 0:00:00]} gxf5 {[%emt 0:00:01]} 17. Nb5 {[%emt 0:00:00]} Ne4 {[%emt 0:00:14]} 18. Bxg7 {[%emt 0:00:00]} Kxg7 {[%emt 0:00:02]} 19. Rxd8 {[%emt 0:00:00]} Rxd8 {[%emt 0:00:00]} 20. e3 {[%emt 0:00:00]} Ba6 {[%emt 0:00:44]} 21. a4 {[%emt 0:00:00]} e6 {[%emt 0:00:12]} 22. Rc1 {[%emt 0:00:00]} Bb7 {[%emt 0:00:13]} 23. Nfd4 {[%emt 0:00:00]} Nxd4 {[%emt 0:00:04]} 24. Nxd4 {[%emt 0:00:00]} Rd7 {[%emt 0:00:10]} 25. Bf1 {[%emt 0:00:00]} Nc5 {[%emt 0:00:06]} 26. b4 {[%emt 0:00:00]} Ne4 {[%emt 0:00:06]} 27. a5 {[%emt 0:00:00]} Bd5 {[%emt 0:00:05]} 28. Bb5 {[%emt 0:00:00]} Re7 {[%emt 0:00:05]} 29. a6 {[%emt 0:00:00]} Kf6 {[%emt 0:00:06]} 30. Bc6 {[%emt 0:00:01]} Ke5 {[%emt 0:00:06]} 31. b5 {[%emt 0:00:04]} Rc7 {[%emt 0:00:03]} 32. Rd1 {[%emt 0:00:05]} Nc3 {[%emt 0:00:02]} 33. Rd2 {[%emt 0:00:05]} Kd6 {[%emt 0:00:02]} 34. Rd3 {[%emt 0:00:04]} Ne4 {[%emt 0:00:02]} 35. Nxf5+ {[%emt 0:00:02]} Kc5 {[%emt 0:00:02]} 36. Nd4 {[%emt 0:00:04]} Ng5 {[%emt 0:00:01]} 37. h4 {[%emt 0:00:02]} Ne4 {[%emt 0:00:01]} (37... Bxc6 $2 38. Rc3+ Kb4 39. Rxc6 (39. Nxc6+ $2 Kxc3 40. hxg5 Kc4 $19) (39. Rb3+ Ka4 $11) 39... Rxc6 (39... Nh3+ $2 40. Kg2 $18) 40. bxc6 $18) 38. Rd1 {[%emt 0:00:02]} (38. Bxd5 $14 Kxd5 39. Kg2) 38... Kb4 {[%emt 0:00:02]} (38... Nc3 $11 39. Rc1 Kb4) 39. h5 {[%emt 0:00:03]} (39. Rb1+ $14 Kc4 40. Rc1+ Kd3 41. Rd1+ Kc4 42. Rc1+) 39... Nc3 $11 {[%emt 0:00:01]} 40. Re1 {[%emt 0:00:03]} (40. Rd2 $11) 40... Bc4 {[%emt 0:00:00]} (40... Bxc6 $17 41. bxc6 e5) 41. Kh2 {[%emt 0:00:01]} (41. f4 $1 $11 {keeps the balance.}) 41... e5 $1 $17 {[%emt 0:00:01]} 42. Nf5 {[%emt 0:00:03]} f6 $2 {[%emt 0:00:01]} (42... Bxb5 $17 43. Bb7 Bc6) 43. Nd6 $1 $14 {[%emt 0:00:01]} Bxb5 $2 {[%emt 0:00:03]} (43... Nxb5 $2 44. Bxb5 Bxb5 45. Rb1+ Ka5 46. Rxb5+ $18 (46. Nxb5 Rc5 $18)) (43... Be6 $1 $14) 44. Bxb5 $18 {[%emt 0:00:03]} Kc5 {[%emt 0:00:04]} 45. Bf1 $2 {[%emt 0:00:07]} (45. Ne8 $18 Re7 46. Nxf6 (46. Bd3 e4 $16) 46... Kxb5 47. g4) 45... Kxd6 $17 {[%emt 0:00:02]} 46. Kh3 {[%emt 0:00:01]} Ne4 {[%emt 0:00:01]} (46... b5 $17 {White must now prevent ...b4.} 47. Rc1 Rc5 (47... b4 48. Rc2 $15)) 47. Re2 $15 {[%emt 0:00:02]} Rc3 {[%emt 0:00:03]} (47... b5 $6 48. Rb2 $16) 48. Bg2 {[%emt 0:00:01]} Nc5 {[%emt 0:00:02]} 49. Ra2 {[%emt 0:00:03]} Rd3 {[%emt 0:00:02]} 50. Kg4 {[%emt 0:00:03]} Ke6 {[%emt 0:00:01]} 51. Bf1 {[%emt 0:00:02]} f5+ {[%emt 0:00:01]} 52. Kh4 {[%emt 0:00:01]} Rd1 {[%emt 0:00:04]} 53. Bg2 {[%emt 0:00:03]} Kf6 {[%emt 0:00:01]} 54. g4 {[%emt 0:00:01]} fxg4 {[%emt 0:00:03]} 55. Kxg4 {[%emt 0:00:02]} h6 {[%emt 0:00:00]} 56. Kg3 {[%emt 0:00:03]} Rd8 {[%emt 0:00:03]} 57. Bf3 {[%emt 0:00:03]} e4 {[%emt 0:00:01]} 58. Bg4 {[%emt 0:00:02]} Ke5 {[%emt 0:00:02]} 59. f4+ {[%emt 0:00:01]} exf3 {[%emt 0:00:01]} 60. Kxf3 {[%emt 0:00:01]} Rf8+ {[%emt 0:00:01]} 61. Kg3 {[%emt 0:00:02]} (61. Ke2 $15) 61... Rg8 {[%emt 0:00:00]} (61... Ke4 $17) 62. Kf3 {[%emt 0:00:01]} (62. Kh4 $11) 62... Rf8+ {[%emt 0:00:01]} 63. Kg3 $1 {[%emt 0:00:01]} Ne4+ {[%emt 0:00:01]} 64. Kh4 $2 {[%emt 0:00:02][%mdl 8192]} (64. Kg2 $17) 64... Rf1 $2 {[%emt 0:00:01]} (64... Rf2 $1 $19 {[%cal Rf2a2]} 65. Rxf2 Nxf2) 65. Bh3 $17 {[%emt 0:00:04]} Rh1 {[%emt 0:00:02]} 66. Kg4 {[%emt 0:00:03]} Rg1+ {[%emt 0:00:03]} (66... Re1 $17) 67. Kh4 {[%emt 0:00:01] [#]} ({Better is} 67. Bg2 $15) 67... Ng5 {[%emt 0:00:03]} (67... Rc1 $1 $17 68. Bg2 Rc4) 68. Bg2 $11 {[%emt 0:00:03]} Re1 {[%emt 0:00:03]} 69. Rc2 {[%emt 0:00:03]} Rxe3 {[%emt 0:00:04]} 70. Rc7 $2 {[%emt 0:00:01] [#]} (70. Rc6 $11 {and White has nothing to worry.}) 70... Kf4 $2 {[%emt 0:00:01]} ({Black should try} 70... Ra3 $1 $19 71. Bb7 b5) 71. Rxa7 $2 {[%emt 0:00:02][%mdl 8192]} (71. Rc4+ $11 Ke5 72. Rc6) 71... Re2 $2 {[%emt 0:00:01]} (71... Rh3+ {mates} 72. Bxh3 Nf3#) 72. Rf7+ $2 {[%emt 0:00:04][%mdl 8192]} (72. Ra8 $11 Nf3+ (72... Rxg2 73. Rf8+ $16) 73. Kh3 Ng5+ 74. Kh2) 72... Nxf7 {[%emt 0:00:04]} 73. a7 {[%emt 0:00:01]} Rxg2 {[%emt 0:00:03]} 0-1

[Event "European Women Blitz-ch 2024"]
[Site "Monaco"]
[Date "2025.01.10"]
[Round "5.4"]
[White "Kulon, Klaudia"]
[Black "Wagner, Dinara"]
[Result "1-0"]
[Annotator "TA"]
[ECO "A13"]
[WhiteElo "2393"]
[BlackElo "2437"]
[PlyCount "187"]
[EventDate "2025.01.06"]
[EventType "swiss"]
[EventCountry "MNC"]
[SourceTitle "playchess.com"]
[Source "ChessBase"]
[SourceQuality "1"]
[TimeControl "180+2"]

{[%evp 11,187,-5,-17,-26,10,-21,0,-39,0,0,0,0,1,0,0,0,0,0,0,0,0,0,0,0,0,0,0,-31,-27,-44,-47,-47,-36,-77,-60,-115,-45,-54,-31,-70,-28,-59,-43,-106,-41,-29,70,15,141,142,157,0,0,-485,-262,-720,-449,-445,547,93,349,20,70,0,0,0,0,0,222,0,110,38,104,0,5,14,111,0,0,0,0,-75,0,-75,-38,-75,0,-75,-75,-75,-75,-75,-75,-75,-75,-97,-97,-97,-97,-97,-97,-97,0,-97,-97,-97,-97,-97,-97,-97,-97,-97,-97,-97,-97,-97,-35,-104,-97,-97,-97,-97,-97,-97,-97,-97,-35,-35,-35,-35,-35,-35,-35,-35,-35,-35,0,-35,-35,-35,-35,-35,0,-35,-35,-35,0,-35,-35,-35,-35,-35,-35,-35,0,-36,0,-36,0,-36,-43,-44,-50,-50,0,-51,-52,-52,-51,-55,-52,-63,-51,-29945,-29950,-12845,29991,29991]} 1. c4 {[%emt 0:00:02]} Nf6 {[%emt 0:00:01]} 2. g3 {[%emt 0:00:01]} e6 {[%emt 0:00:01]} 3. Bg2 {[%emt 0:00:00]} d5 {[%emt 0:00:01]} 4. Nf3 {[%emt 0:00:01]} dxc4 {[%emt 0:00:01]} 5. O-O {[%emt 0:00:02]} a6 {[%emt 0:00:01]} 6. a4 {[%emt 0:00:05]} Nc6 {[%emt 0:00:02]} 7. Na3 {[%emt 0:00:01]} Na5 {[%emt 0:00:44]} 8. Qc2 {[%emt 0:00:17]} Qd5 $1 {[%emt 0:00:01]} 9. Rd1 {[%emt 0:00:11]} Bd6 {[%emt 0:00:25]} 10. d3 {[%emt 0:00:23]} cxd3 {[%emt 0:00:01]} 11. Rxd3 {[%emt 0:00:01]} Qh5 {[%emt 0:00:06]} 12. Bd2 {[%emt 0:00:19]} O-O {[%emt 0:00:06][%cal Oe6e5]} 13. h3 {[%emt 0:00:04]} Nc6 $1 {[%emt 0:00:02][%cal Ba5c6,Bc6e5,Be5d3][%mdl 32]} 14. Nc4 {[%emt 0:00:01]} Bb4 {[%emt 0:00:23]} 15. Nce5 {[%emt 0:00:21]} Nxe5 {[%emt 0:00:13]} 16. Bxb4 {[%emt 0:00:01]} Nxd3 {[%emt 0:00:26]} 17. Bxf8 {[%emt 0:00:01]} Kxf8 {[%emt 0:00:01]} 18. Qxd3 {[%emt 0:00:07]} Bd7 {[%emt 0:00:01]} 19. Nd4 {[%emt 0:00:10] Wards off Bc6} Rb8 {[%emt 0:00:20]} 20. Qa3+ {[%emt 0:00:10]} Kg8 {[%emt 0:00:07]} 21. Rc1 {[%emt 0:00:01]} e5 {[%emt 0:00:08]} 22. Nf3 {[%emt 0:00:18]} e4 $1 {[%emt 0:00:35]} (22... Bxh3 23. Bxh3 Qxh3 24. Rxc7 $14) 23. Nd4 {[%emt 0:00:04]} (23. Rc5 $15 Qh6 24. Ne5) 23... Qe5 {[%emt 0:00:00]} (23... Bxh3 $17 {and ...Rd8 would now be decisive} 24. Qe7 Bxg2 25. Kxg2 Ng4 26. Qxe4 Qh2+ 27. Kf3 Nf6 (27... Qxf2+ $2 28. Kxg4 Rd8 29. Nf3 $18) (27... Nxf2 28. Qe5 $17)) 24. e3 $15 {[%emt 0:00:06]} c6 {[%emt 0:00:00]} 25. a5 {[%emt 0:00:03]} h6 {[%emt 0:00:00]} 26. Qb4 {[%emt 0:00:01]} Be8 {[%emt 0:00:00]} 27. Qb6 {[%emt 0:00:01]} ({White should try} 27. Ne2 $15) 27... Nd5 {[%emt 0:00:00]} (27... Nd7 $1 $17 {[%cal Rd7b6]} 28. Qa7 Qxa5 (28... c5 $2 29. Nc2 $19) 29. Bxe4 Qb4) 28. Qa7 {[%emt 0:00:04][%cal Og2e4]} Nb4 {[%emt 0:00:00]} (28... Bd7 $11) 29. Rc4 {[%emt 0:00:05] White is more active.} (29. Bxe4 $14 Rd8 30. Qb6 (30. Qxb7 Na2 $17)) 29... Nd3 {[%emt 0:00:00] [#]} (29... Nd5 $1 $11) 30. Bxe4 $1 $16 {[%emt 0:00:12][%mdl 512]} Nxb2 {[%emt 0:00:00]} (30... Qxe4 31. Qxb8) 31. Rb4 $2 {[%emt 0:00:04]} (31. Rc5 $16 Qd6 32. Nf5 Qd1+ 33. Kh2) 31... Rd8 $1 $11 {[%emt 0:00:00]} 32. Bxc6 $2 {[%emt 0:00:07][%mdl 8192]} (32. Rxb2 Qxe4 33. Qxb7 Kh7 $17) (32. Nf3 $11 {and White is okay.} Qe7 (32... Qxa5 $2 33. Rxb2 Qa1+ 34. Rb1 $18) (32... Rd1+ 33. Kg2 $16) 33. Qxb7 (33. Rxb2 Qxe4 34. Nd2 Qe5 $19)) 32... Nd3 {[%emt 0:00:02]} (32... Qxa5 33. Qxb7 (33. Rxb2 $2 Qa1+ 34. Kg2 Qxb2 $19) 33... Nd3 34. Rb1 $11) (32... Bxc6 33. Qb6 Rxd4 34. Qxd4 Qxd4 (34... Qxa5 35. Qxb2 Qd5 36. e4 $11) 35. exd4 $17) (32... bxc6 $142 33. Qb6 Rd6 (33... Nd3 $2 34. Rb3 $19)) 33. Rxb7 $2 {[%emt 0:00:04]} (33. Qxb7 $2 Qf6 (33... Qxa5 34. Bxe8 Rxe8 35. Rb1 $17) (33... Nxb4 $2 34. Bxe8 Rxe8 35. Qxb4 $19) 34. Bf3 Nxb4 35. Qxb4 Rxd4 36. exd4 Qxf3 $19) (33. Bxe8 Nxb4 34. Qxb7 Rxe8 (34... Qxa5 $2 35. Bxf7+ Kh8 36. Ne6 $18) 35. Qxb4) 33... Qf6 {[%emt 0:00:07]} 34. Bf3 {[%emt 0:00:04]} (34. Qxa6 Qxf2+ (34... Nxf2 35. Bb5 $11) 35. Kh1 Nc5 (35... Qxe3 $2 36. Kh2 $19) (35... Qxg3 $2 36. Bg2 $19)) 34... Ne1 $4 {[%emt 0:00:06][%mdl 8192]} (34... Rxd4 $1 $19 35. exd4 Qxf3) 35. Bg2 $2 {[%emt 0:00:03]} (35. Be4 $18 {is the precise move to win.}) 35... Nd3 $2 {[%emt 0:00:00][%mdl 8192]} (35... Nxg2 $16 {was called for.} 36. Rb6 (36. Kxg2 $2 Bc6+ 37. Kf1 Bxb7 $19) 36... Qe5 (36... Rd7 $2 37. Qxd7 Bxd7 38. Rxf6 $18) 37. Kxg2 Qxa5) 36. Nf3 $2 {[%emt 0:00:06]} ({White has to play} 36. f4 $1 $18 {Hoping for Rb6.} Qg6 37. g4) 36... Bc6 {[%emt 0:00:13]} (36... Qa1+ $1 $11 37. Bf1 Qf6) 37. Rb6 {[%emt 0:00:01]} (37. Rb8 $1 $14 Qa1+ 38. Bf1 Rxb8 39. Qxb8+ Kh7 40. Qc8) 37... Qa1+ {[%emt 0:00:00]} 38. Kh2 {[%emt 0:00:02]} Bxf3 {[%emt 0:00:00]} 39. Bxf3 {[%emt 0:00:01][%cal Of3d5]} Nxf2 $2 {[%emt 0:00:00]} (39... Qf1 $11 {and Black has nothing to worry.} 40. Bg2 (40. Rxa6 $2 Qxf2+ 41. Bg2 Ne1 $19) 40... Qxf2) 40. Rb8 $2 {[%emt 0:00:04]} (40. Rxa6 Qe5 41. Rc6 Nd1 $15) (40. Qxa6 Qa2 41. Bg2 Nd3 $11) (40. Bd5 $1 $18 Rf8 41. Rb8 (41. Qxa6 Nd1 $16) (41. Rxa6 Qe1 $14) 41... Rxb8 42. Qxb8+ Kh7 43. Qf4) 40... Rxb8 {[%emt 0:00:00]} (40... Qxa5 $11 41. Qa8 (41. Rxd8+ Qxd8 42. Qxa6 Qe8 $11) 41... Rxb8 42. Qxb8+ Kh7) 41. Qxb8+ {[%emt 0:00:01][%mdl 4096] Endgame KQB-KQN} Kh7 {[%emt 0:00:00][%cal Oa1a2] [#]} 42. Qf4 {[%emt 0:00:01]} (42. Qb3 $1 $16 {[%cal Rb3c2]}) 42... Qb2 {[%emt 0:00:02] ( -> ...Ng4+)} 43. Bg2 {[%emt 0:00:01]} (43. Qxf7 $2 Ng4+ 44. Kg1 Qh2+ 45. Kf1 Qf2#) 43... Qa2 {[%emt 0:00:02]} (43... Nd1 $1 $11) 44. g4 {[%emt 0:00:03]} (44. Qf3 $16) 44... g6 {[%emt 0:00:00]} 45. Kg3 {[%emt 0:00:05]} (45. Qf6 Nd1 46. Qf3 Nc3) 45... Nd3 {[%emt 0:00:01]} 46. Qd6 {[%emt 0:00:02]} (46. Qf6 $11) 46... Qe2 {[%emt 0:00:08]} (46... Qf2+ $17 47. Kh2 Ne1 (47... Qxe3 48. Qxa6 Qe5+ 49. Kg1 $11)) 47. Qe7 {[%emt 0:00:11]} (47. Qxa6 $11 {keeps the balance.} Qxe3+ 48. Kh2) 47... Kg7 {[%emt 0:00:00]} (47... Qf2+ {simplifies} 48. Kh2 Ne1 49. Qe4 Nxg2 50. Qxg2 Qxe3 51. Qb7 Qf2+) 48. Qe4 {[%emt 0:00:08]} Qf2+ {[%emt 0:00:01]} 49. Kh2 {[%emt 0:00:01]} Ne1 {[%emt 0:00:04]} 50. Qe5+ {[%emt 0:00:03]} Kh7 {[%emt 0:00:00][%csl Ge1][%cal Rf2g2]} 51. Qe4 {[%emt 0:00:01]} Nxg2 {[%emt 0:00:05]} 52. Qxg2 {[%emt 0:00:01]} Qxe3 $17 {[%emt 0:00:01] KQ-KQ. Black is a pawn up.} 53. Qa2 {[%emt 0:00:02]} Qe5+ {[%emt 0:00:01]} 54. Kg2 {[%emt 0:00:01]} Kg7 {[%emt 0:00:00]} 55. Qa3 {[%emt 0:00:02]} Qd5+ {[%emt 0:00:02]} 56. Kh2 {[%emt 0:00:01]} Qe5+ {[%emt 0:00:02]} 57. Kg2 {[%emt 0:00:03]} h5 {[%emt 0:00:01]} 58. gxh5 {[%emt 0:00:01]} Qxh5 {[%emt 0:00:01]} 59. Qc3+ {[%emt 0:00:01]} Kh7 {[%emt 0:00:01]} 60. Qc4 {[%emt 0:00:04][%csl LRa6,LRf7]} Qg5+ {[%emt 0:00:04]} 61. Kh2 {[%emt 0:00:02]} Qf6 {[%emt 0:00:02]} (61... Qxa5 $6 62. Qxf7+ Kh6 63. Qf4+ Kg7 64. Qd4+ Kh7 65. Qh4+ Kg8 66. Qf6 $11) 62. Kg2 {[%emt 0:00:03]} Kg7 {[%emt 0:00:00]} 63. Qc5 {[%emt 0:00:03] Dodges Qg5+} Qe6 {[%emt 0:00:02]} (63... Kh6 $17 {( -> ...Qg5+)} 64. Qc4 Kg7) 64. Qb6 {[%emt 0:00:02]} (64. Qd4+ $1 $15 Qf6 65. Qc5) 64... Qe4+ {[%emt 0:00:03]} 65. Kh2 {[%emt 0:00:01]} Qc2+ {[%emt 0:00:02]} 66. Kg3 {[%emt 0:00:01]} Qd3+ {[%emt 0:00:00]} 67. Kg2 {[%emt 0:00:01]} g5 {[%emt 0:00:04]} 68. Kh2 {[%emt 0:00:06]} f6 {[%emt 0:00:02]} ({Better is} 68... Qe2+ $17 69. Kg1 Qd3) 69. Kg2 {[%emt 0:00:01]} Qe4+ {[%emt 0:00:01]} 70. Kh2 {[%emt 0:00:01]} Qe2+ {[%emt 0:00:01]} 71. Kg1 {[%emt 0:00:02]} Qd1+ {[%emt 0:00:03]} 72. Kg2 {[%emt 0:00:01]} Qd2+ {[%emt 0:00:02]} 73. Kg1 {[%emt 0:00:00]} Qd3 {[%emt 0:00:00]} 74. Kg2 {[%emt 0:00:01]} Kg6 {[%emt 0:00:01]} 75. Kh2 {[%emt 0:00:03]} Qe2+ {[%emt 0:00:02]} 76. Kg1 {[%emt 0:00:02]} Kf5 {[%emt 0:00:01]} 77. Kh1 {[%emt 0:00:07]} Qd1+ {[%emt 0:00:04]} 78. Kg2 {[%emt 0:00:01]} Qe2+ {[%emt 0:00:02]} 79. Kg1 {[%emt 0:00:00]} (79. Qf2+ Qxf2+ 80. Kxf2 Ke4 81. Kg3 f5 82. h4 gxh4+ 83. Kxh4 f4 84. Kh3 f3 85. Kg3 Ke3 86. Kg4 f2 87. Kf5 f1=Q+ (87... f1=R+ {gets mated.} 88. Ke5 Ra1 89. Ke6 Rxa5 90. Ke7 Re5+ 91. Kf7 Kf4 92. Kf6 a5 93. Kg6 a4 94. Kg7 a3 95. Kf7 a2 96. Kg8 a1=Q 97. Kg7 Rh5+ 98. Kg6 Qa7 99. Kxh5 Qh7#) 88. Ke5 Qf7 89. Kd6 Qf6+ 90. Kc7 Kd4 91. Kb8 Qe7 92. Kc8 Kc5 93. Kb8 Kc6 94. Kc8 Qf8#) 79... Qe1+ {[%emt 0:00:06]} 80. Kg2 {[%emt 0:00:01]} Qd2+ {[%emt 0:00:03]} 81. Kg1 {[%emt 0:00:02]} Qd3 {[%emt 0:00:02]} 82. Kg2 {[%emt 0:00:01]} Kg6 {[%emt 0:00:03]} 83. Kh2 {[%emt 0:00:01]} Qe2+ {[%emt 0:00:02]} 84. Kg1 {[%emt 0:00:01]} Qd3 {[%emt 0:00:02]} 85. Kg2 {[%emt 0:00:01] Against Qg3+} Qc4 {[%emt 0:00:04]} 86. Kh2 {[%emt 0:00:03]} Qf1 {[%emt 0:00:01]} 87. Kg3 {[%emt 0:00:03]} Kh5 {[%emt 0:00:04]} (87... Qe2 $15) 88. Qd8 {[%emt 0:00:09]} (88. Qe6 $1 $11) 88... Qf4+ {[%emt 0:00:04]} 89. Kg2 {[%emt 0:00:01]} Qe4+ {[%emt 0:00:01]} 90. Kh2 {[%emt 0:00:02]} Qe5+ {[%emt 0:00:01]} 91. Kg2 {[%emt 0:00:00]} f5 {[%emt 0:00:01]} 92. Qb6 $2 {[%emt 0:00:04][%mdl 8192]} (92. Qf8 $15) 92... Qe2+ {[%emt 0:00:02]} 93. Kg1 {[%emt 0:00:01] [#]} Qe3+ $4 {[%emt 0:00:03][%mdl 8192]} 94. Qxe3 {[%emt 0:00:02]} 1-0

[Event "European Women Blitz-ch 2024"]
[Site "Monaco"]
[Date "2025.01.10"]
[Round "5.5"]
[White "Ushenina, Anna"]
[Black "Tsolakidou, Stavroula"]
[Result "1/2-1/2"]
[Annotator "TA"]
[ECO "E62"]
[WhiteElo "2418"]
[BlackElo "2451"]
[PlyCount "84"]
[EventDate "2025.01.06"]
[EventType "swiss"]
[EventCountry "MNC"]
[SourceTitle "playchess.com"]
[Source "ChessBase"]
[SourceQuality "1"]
[TimeControl "180+2"]

{[%evp 19,84,50,45,40,47,45,50,50,49,27,21,18,13,0,0,-11,26,-30,-4,-16,0,-53,-45,-40,-38,-53,-35,-26,-14,-13,-16,-8,-12,-6,0,0,0,0,0,-4,24,-89,0,-3,0,-93,-88,-86,-89,-89,0,0,14,8,2,0,0,0,0,0,0,0,0,-8,0,0,0]} 1. Nf3 {[%emt 0:00:01]} Nf6 {[%emt 0:00:01]} 2. c4 {[%emt 0:00:01]} g6 {[%emt 0:00:01]} 3. d4 {[%emt 0:00:02]} Bg7 {[%emt 0:00:01]} 4. g3 {[%emt 0:00:02]} O-O {[%emt 0:00:01]} 5. Bg2 {[%emt 0:00:00]} d6 {[%emt 0:00:01]} 6. O-O {[%emt 0:00:02]} Nc6 {[%emt 0:00:02]} 7. Nc3 {[%emt 0:00:01]} e5 {[%emt 0:00:01]} 8. dxe5 {[%emt 0:00:12]} dxe5 {[%emt 0:00:02]} 9. Bg5 {[%emt 0:00:02]} h6 {[%emt 0:00:03]} 10. Qxd8 {[%emt 0:00:15]} Rxd8 {[%emt 0:00:02]} 11. Bxf6 {[%emt 0:00:02]} Bxf6 {[%emt 0:00:01]} 12. Nd5 {[%emt 0:00:00]} Kg7 {[%emt 0:00:02]} 13. Nxc7 {[%emt 0:00:04]} Rb8 {[%emt 0:00:02]} 14. Nd5 {[%emt 0:00:04]} e4 {[%emt 0:00:06][%csl LRb2,LRf3]} 15. Nd2 {[%emt 0:00:01][%cal Oa1b1]} (15. Nxf6 $2 exf3 16. Bxf3 Kxf6 $19) 15... e3 {[%emt 0:00:22]} 16. fxe3 {[%emt 0:00:09]} (16. Nxe3 $2 Rxd2 17. Rfe1 Bd4 $19 (17... Rxb2 $2 18. Rab1 $19) (17... Bxb2 $2 18. Rad1 $19)) 16... Bxb2 {[%emt 0:00:03]} 17. Rab1 {[%emt 0:00:00]} Be5 {[%emt 0:00:06]} (17... Ba3 $5) 18. Ne4 {[%emt 0:00:13]} ({Better is} 18. Nb3) 18... Bf5 {[%emt 0:00:23]} 19. Rb5 {[%emt 0:00:53] Wards off Na5} b6 {[%emt 0:00:41] Prevents Nc5} 20. Nb4 {[%emt 0:00:36]} (20. Nf4 $11) 20... Nxb4 $15 {[%emt 0:00:21]} 21. Rxe5 {[%emt 0:00:01]} Be6 {[%emt 0:00:06]} 22. Rb5 {[%emt 0:00:16]} Nxa2 {[%emt 0:00:35]} 23. c5 {[%emt 0:00:12]} Bc4 {[%emt 0:00:11]} 24. Rb2 $1 {[%emt 0:00:03]} bxc5 {[%emt 0:00:03]} 25. Rc2 {[%emt 0:00:03][%cal Bb2c2,Bc2c5,Bc5c7][%mdl 32]} Bb3 {[%emt 0:00:21]} 26. Rxc5 {[%emt 0:00:02]} Nb4 {[%emt 0:00:05]} 27. Rc7 {[%emt 0:00:10][%cal Oe4c5]} a5 {[%emt 0:00:02] With the idea ...a4.} 28. Nc5 {[%emt 0:00:03]} Ba2 $36 {[%emt 0:00:04][%mdl 2048] Black fights for an advantage.} 29. Ra7 {[%emt 0:00:10]} Rb5 {[%emt 0:00:05] [#]} 30. Nd3 {[%emt 0:00:19]} Bc4 {[%emt 0:00:04]} (30... Nxd3 $17 31. Rd1 a4) 31. Nf4 {[%emt 0:00:02]} Bb3 {[%emt 0:00:02]} 32. Ra1 {[%emt 0:00:01]} (32. Be4 $11 {remains equal.}) 32... a4 $17 {[%emt 0:00:01]} 33. Nd3 {[%emt 0:00:03]} Nxd3 {[%emt 0:00:02]} 34. exd3 {[%emt 0:00:00]} Rxd3 {[%emt 0:00:01]} (34... Re5 $17 35. Be4 Rc8) 35. Bf1 $11 {[%emt 0:00:01]} Rbd5 {[%emt 0:00:02]} 36. Bxd3 {[%emt 0:00:01]} Rxd3 {[%emt 0:00:01][%mdl 4096] Endgame KRR-KRB} 37. Re7 {[%emt 0:00:01]} Rd2 {[%emt 0:00:02]} 38. Ra7 {[%emt 0:00:03]} Kf6 {[%emt 0:00:01]} 39. R1xa4 {[%emt 0:00:01]} Bxa4 {[%emt 0:00:01]} 40. Rxa4 {[%emt 0:00:01]} Re2 {[%emt 0:00:02]} 41. Re4 {[%emt 0:00:03]} Kf5 {[%emt 0:00:03]} 42. Re7 {[%emt 0:00:01]} Kf6 {[%emt 0:00:01]} 1/2-1/2